bitfinex-derivatives/quotes_BTCF0:USTF0_20240815
["timestamp","ask_amount","ask_price","bid_price","bid_amount"]
[1723754287680,0.01290376,56823.0,56822.0,0.44940857]
[1723754287872,0.01290376,56823.0,56822.0,0.3618]
[1723754288179,0.01,56823.0,56822.0,0.49581325]
[1723754290476,0.01,56823.0,56822.0,0.72619025]
[1723754291176,0.01,56823.0,56822.0,0.83133973]
[1723754291376,0.01,56823.0,56822.0,0.73338474]
[1723754291575,0.080376,56823.0,56822.0,0.65581325]
[1723754291879,0.08327973,56823.0,56822.0,0.65581325]
[1723754292302,0.080376,56823.0,56822.0,0.65581325]
[1723754292465,0.08327973,56823.0,56822.0,0.65581325]
[1723754293278,0.08327973,56823.0,56822.0,0.49581325]
[1723754293469,0.08327973,56823.0,56822.0,0.44968739]
[1723754294885,0.08327973,56823.0,56822.0,0.001]
[1723754296575,0.08327996,56823.0,56822.0,0.3618]
[1723754297679,0.08327996,56823.0,56822.0,0.49581533]
[1723754300574,0.08327996,56823.0,56822.0,0.3618]
[1723754301182,0.01290396,56823.0,56822.0,0.44971859]
[1723754301386,0.01290396,56823.0,56822.0,0.49581654]
[1723754301883,0.01290396,56823.0,56822.0,0.56619354]
[1723754302084,1.84493996,56823.0,56822.0,0.001]
[1723754302277,0.598337,56822.0,56818.0,0.04566903]
[1723754302476,0.140764,56818.0,56817.0,0.00021245]
[1723754302678,0.140764,56818.0,56809.0,0.08792049]
[1723754302679,0.5035309,56818.0,56809.0,0.08792049]
[1723754302876,0.2129,56811.0,56809.0,0.08792049]
[1723754303076,0.00290396,56810.0,56809.0,0.08792049]
[1723754303281,0.00290396,56810.0,56807.0,0.23622049]
[1723754303479,0.00290396,56809.0,56807.0,0.23622049]
[1723754303684,0.00311432,56808.0,56807.0,0.23622049]
[1723754303885,0.00311432,56808.0,56807.0,0.28235046]
[1723754304086,0.001,56811.0,56810.0,0.070392]
[1723754304283,0.001,56811.0,56810.0,0.20444246]
[1723754305484,0.070376,56824.0,56811.0,0.52808]
[1723754305791,0.070376,56824.0,56822.0,0.3608]
[1723754305990,0.070376,56824.0,56823.0,0.1584]
[1723754306187,0.07748294,56824.0,56823.0,0.1584]
[1723754306895,0.07848294,56824.0,56823.0,0.1584]
[1723754307091,0.070376,56823.0,56822.0,0.3608]
[1723754308395,0.075376,56823.0,56822.0,0.3608]
[1723754309490,0.080376,56823.0,56822.0,0.3608]
[1723754312590,0.080376,56823.0,56822.0,0.3618]
[1723754316196,0.01,56823.0,56822.0,0.3618]
[1723754318692,0.01,56823.0,56822.0,0.56619115]
[1723754318892,0.01,56823.0,56822.0,0.671579]
[1723754319195,0.01290361,56823.0,56822.0,0.671579]
[1723754319693,0.01290361,56823.0,56822.0,0.56619115]
[1723754320095,0.01290361,56823.0,56822.0,0.57325139]
[1723754320297,0.01290361,56823.0,56822.0,0.97325139]
[1723754320496,0.00026389,56829.0,56828.0,0.07037]
[1723754320697,0.00026389,56829.0,56828.0,0.3608]
[1723754320903,0.07063289,56829.0,56828.0,0.3608]
[1723754321794,0.08163289,56829.0,56828.0,0.3618]
[1723754322102,0.09263289,56829.0,56828.0,0.3628]
[1723754324302,0.09989275,56829.0,56828.0,0.3628]
[1723754325308,0.09989275,56829.0,56828.0,0.002]
[1723754325492,0.070381,56819.0,56816.0,0.3608]
[1723754325698,0.283281,56819.0,56816.0,0.3608]
[1723754325998,0.283281,56819.0,56813.0,0.151]
[1723754326903,0.283281,56819.0,56808.0,0.15819436]
[1723754327096,0.283281,56819.0,56809.0,0.08780036]
[1723754327695,0.283281,56819.0,56812.0,0.08780036]
[1723754327898,0.283281,56819.0,56811.0,0.44860036]
[1723754328111,0.29056437,56819.0,56811.0,0.44860036]
[1723754328312,0.29056437,56819.0,56811.0,0.3608]
[1723754328902,0.29456437,56819.0,56811.0,0.3608]
[1723754331408,0.01128337,56819.0,56811.0,0.3608]
[1723754331611,0.01128337,56819.0,56811.0,0.44860036]
[1723754332113,0.01128337,56819.0,56812.0,0.08780036]
[1723754332713,0.01128337,56819.0,56814.0,0.070387]
[1723754332917,0.01128337,56819.0,56818.0,0.36106389]
[1723754333137,0.01128337,56819.0,56818.0,0.00026389]
[1723754333809,0.00928337,56819.0,56818.0,0.00026389]
[1723754334211,0.07966437,56819.0,56818.0,0.00026389]
[1723754334723,0.07766437,56819.0,56818.0,0.00026389]
[1723754335511,0.29056437,56819.0,56818.0,0.00026389]
[1723754336410,0.29156437,56819.0,56818.0,0.00026389]
[1723754337113,0.29056437,56819.0,56818.0,0.00026389]
[1723754337314,0.29456437,56819.0,56818.0,0.00026389]
[1723754339713,0.29256437,56819.0,56818.0,0.00026389]
[1723754340117,0.00136,56828.0,56818.0,1.44906389]
[1723754340422,0.00026389,56829.0,56827.0,0.3608]
[1723754341809,0.07063389,56829.0,56827.0,0.3608]
[1723754342018,0.002,56828.0,56827.0,0.36803165]
[1723754342411,0.004,56828.0,56827.0,0.43840265]
[1723754342611,0.05198087,56839.0,56828.0,0.52792]
[1723754342820,0.070356,56840.0,56836.0,0.3608]
[1723754343021,0.070357,56839.0,56837.0,0.3082]
[1723754343821,0.070357,56838.0,56837.0,0.3082]
[1723754344219,0.283257,56838.0,56837.0,0.1547]
[1723754344518,0.140728,56833.0,56832.0,0.00026389]
[1723754344719,0.07037,56828.0,56827.0,0.001]
[1723754344909,0.07037,56828.0,56816.0,0.08772416]
[1723754344910,0.152,56832.0,56816.0,0.24242416]
[1723754345107,0.2129,56824.0,56816.0,0.24242416]
[1723754345316,0.070381,56820.0,56816.0,0.24242416]
[1723754345518,0.070379,56821.0,56816.0,0.24242416]
[1723754345912,0.070379,56821.0,56820.0,0.3608]
[1723754347421,0.072379,56821.0,56820.0,0.3608]
[1723754347613,0.074379,56821.0,56820.0,0.3608]
[1723754348011,0.074379,56821.0,56816.0,0.1547]
[1723754348012,0.070381,56820.0,56816.0,0.1547]
[1723754348321,0.070383,56818.0,56816.0,0.1547]
[1723754350623,0.070383,56818.0,56816.0,0.1557]
[1723754351020,0.070383,56818.0,56816.0,0.1547]
[1723754351213,0.070383,56818.0,56816.0,0.1557]
[1723754352512,0.00026389,56824.0,56817.0,0.3608]
[1723754352722,0.00026389,56824.0,56823.0,0.3608]
[1723754353820,0.00026389,56824.0,56816.0,0.24342416]
[1723754353821,0.07038,56820.0,56818.0,0.3608]
[1723754354216,0.070381,56819.0,56818.0,0.3608]
[1723754356514,0.075381,56819.0,56818.0,0.3608]
[1723754357328,0.073381,56819.0,56818.0,0.3608]
[1723754357523,0.077381,56819.0,56818.0,0.3608]
[1723754357918,0.073381,56819.0,56818.0,0.3608]
[1723754358126,0.076381,56819.0,56818.0,0.3608]
[1723754359125,0.437181,56819.0,56816.0,0.1547]
[1723754360229,0.434181,56819.0,56816.0,0.1547]
[1723754360424,0.435181,56819.0,56816.0,0.1547]
[1723754360629,0.070384,56817.0,56813.0,0.00026389]
[1723754360926,0.070387,56814.0,56813.0,0.00026389]
[1723754362521,0.070387,56814.0,56813.0,0.00126389]
[1723754362721,0.070387,56814.0,56813.0,0.00426389]
[1723754363224,0.070387,56814.0,56813.0,0.00026389]
[1723754363422,0.070387,56814.0,56813.0,0.00326389]
[1723754363821,0.070387,56814.0,56813.0,0.00126389]
[1723754364032,0.072387,56814.0,56813.0,0.00126389]
[1723754364625,0.05198087,56825.0,56813.0,1.14948857]
[1723754364832,0.2129,56829.0,56818.0,0.07015462]
[1723754365028,0.2129,56829.0,56820.0,0.07015462]
[1723754365328,0.2129,56829.0,56821.0,0.22385462]
[1723754365329,0.07063889,56824.0,56821.0,0.22385462]
[1723754365627,0.07063889,56824.0,56822.0,0.07015462]
[1723754366431,0.08503721,56824.0,56821.0,0.22485462]
[1723754366726,0.09103721,56824.0,56821.0,0.38585462]
[1723754367323,0.09303721,56824.0,56822.0,0.002]
[1723754368134,0.09303721,56824.0,56822.0,0.07215462]
[1723754368426,0.09303721,56824.0,56822.0,0.002]
[1723754369129,0.09303721,56824.0,56821.0,0.22585462]
[1723754369130,0.09103721,56824.0,56821.0,0.22585462]
[1723754369730,0.2129,56823.0,56819.0,0.07015462]
[1723754369933,0.2129,56823.0,56813.0,0.00026389]
[1723754369934,0.070385,56816.0,56813.0,0.00026389]
[1723754370124,0.43118,56820.0,56813.0,0.00026389]
[1723754370125,0.2129,56814.0,56813.0,0.00026389]
[1723754370329,0.2129,56819.0,56813.0,0.00026389]
[1723754370828,0.070385,56816.0,56813.0,0.00026389]
[1723754371026,0.070385,56816.0,56813.0,0.07041851]
[1723754372329,0.070385,56816.0,56813.0,0.07241851]
[1723754372535,0.070385,56816.0,56813.0,0.00226389]
[1723754372731,0.070386,56815.0,56813.0,0.00226389]
[1723754372935,0.070386,56815.0,56813.0,0.00526389]
[1723754373230,0.2129,56814.0,56813.0,0.07541851]
[1723754373434,0.283287,56814.0,56813.0,0.07546062]
[1723754373632,0.070388,56813.0,56812.0,0.070197]
[1723754373939,0.070388,56813.0,56804.0,0.10538785]
[1723754373940,0.070396,56807.0,56804.0,0.070197]
[1723754374140,0.2129,56809.0,56806.0,0.070197]
[1723754374438,0.2129,56809.0,56805.0,0.070197]
[1723754374735,0.070396,56807.0,56805.0,0.070197]
[1723754374934,0.070397,56806.0,56805.0,0.070197]
[1723754375231,0.3608,56808.0,56804.0,0.070197]
[1723754376232,0.001,56806.0,56805.0,0.008]
[1723754376824,0.36945426,56808.0,56804.0,0.007]
[1723754377029,0.37045426,56808.0,56804.0,0.015]
[1723754377224,0.070397,56806.0,56804.0,0.015]
[1723754377433,0.070397,56806.0,56805.0,0.004]
[1723754377434,0.071397,56806.0,56805.0,0.004]
[1723754378134,0.141794,56806.0,56805.0,0.004]
[1723754378528,0.19377487,56806.0,56805.0,0.004]
[1723754378739,0.19477487,56806.0,56805.0,0.012]
[1723754379034,0.12337787,56806.0,56805.0,0.008]
[1723754379237,0.071397,56806.0,56805.0,0.008]
[1723754379625,0.072397,56806.0,56805.0,0.015]
[1723754379935,0.002,56806.0,56805.0,0.015]
[1723754380740,0.002,56806.0,56805.0,0.1753]
[1723754381035,0.002,56806.0,56805.0,0.315895]
[1723754381237,0.002,56806.0,56805.0,0.245497]
[1723754381437,0.002,56806.0,56805.0,0.1753]
[1723754381438,0.072397,56806.0,56805.0,0.1753]
[1723754383627,0.072397,56806.0,56805.0,0.015]
[1723754388451,0.1533,56812.0,56805.0,0.015]
[1723754388452,0.00026389,56813.0,56806.0,0.52812]
[1723754388643,0.1483,56823.0,56812.0,0.43093223]
[1723754388845,0.2129,56826.0,56817.0,0.07013223]
[1723754389034,0.22052009,56826.0,56819.0,0.070381]
[1723754389234,0.22052009,56826.0,56821.0,0.3608]
[1723754389640,0.2129,56826.0,56821.0,0.3608]
[1723754389841,0.00026389,56829.0,56828.0,0.07037]
[1723754390643,0.00026389,56829.0,56827.0,0.37723223]
[1723754390946,0.00026389,56829.0,56827.0,0.3071]
[1723754392543,0.01426389,56829.0,56828.0,0.001]
[1723754392843,0.02826389,56829.0,56828.0,0.001]
[1723754393646,0.02726389,56829.0,56827.0,0.3091]
[1723754393941,0.02726389,56829.0,56827.0,0.37923223]
[1723754394141,0.01426389,56829.0,56828.0,0.07037]
[1723754394343,0.2129,56838.0,56828.0,0.76905223]
[1723754394534,0.2129,56838.0,56836.0,0.3608]
[1723754395242,0.070354,56841.0,56836.0,0.3608]
[1723754396247,0.070354,56841.0,56836.0,0.431159]
[1723754396543,0.084354,56841.0,56836.0,0.432159]
[1723754396936,0.084354,56841.0,56837.0,0.070358]
[1723754397147,0.014,56841.0,56840.0,0.070355]
[1723754397443,0.014,56841.0,56840.0,0.431155]
[1723754397643,0.00026389,56843.0,56842.0,0.070352]
[1723754400040,0.00526389,56843.0,56842.0,0.071352]
[1723754400347,0.00526389,56843.0,56842.0,0.07874567]
[1723754400743,0.00926389,56843.0,56842.0,0.07974567]
[1723754401163,0.00926389,56843.0,56842.0,0.002]
[1723754401453,0.67772589,56843.0,56842.0,0.002]
[1723754401645,0.14996589,56843.0,56842.0,0.002]
[1723754401855,0.070362,56834.0,56822.0,0.00092]
[1723754402040,0.2129,56823.0,56822.0,0.00092]
[1723754402238,0.2129,56823.0,56816.0,0.1588]
[1723754402540,0.2129,56823.0,56822.0,0.3608]
[1723754402949,0.283276,56823.0,56822.0,0.3608]
[1723754403252,0.283276,56823.0,56812.0,0.51]
[1723754403253,0.070383,56818.0,56817.0,0.00026389]
[1723754403438,0.283283,56818.0,56817.0,0.00026389]
[1723754405054,0.286283,56818.0,56817.0,0.00026389]
[1723754405546,0.003,56818.0,56817.0,0.00026389]
[1723754407244,0.073382,56818.0,56817.0,0.00026389]
[1723754407442,0.08135215,56818.0,56817.0,0.00026389]
[1723754407644,0.29425215,56818.0,56817.0,0.00026389]
[1723754408439,0.08135215,56818.0,56817.0,0.00026389]
[1723754408841,0.070395,56808.0,56807.0,0.07013223]
[1723754409043,0.070401,56803.0,56802.0,0.1472]
[1723754410147,0.070401,56803.0,56802.0,0.1612]
[1723754410449,0.070401,56803.0,56802.0,0.014]
[1723754411854,0.00026389,56808.0,56802.0,1.10216]
[1723754412047,0.00026389,56808.0,56805.0,0.3608]
[1723754412249,0.070397,56806.0,56805.0,0.3608]
[1723754413356,0.070397,56806.0,56805.0,0.006]
[1723754414255,0.070399,56804.0,56803.0,0.3608]
[1723754415644,0.07065889,56808.0,56804.0,0.070399]
[1723754416352,0.07065889,56808.0,56805.0,0.003]
[1723754416754,0.070396,56807.0,56805.0,0.003]
[1723754417052,0.070396,56807.0,56804.0,0.073399]
[1723754417254,0.00026389,56808.0,56807.0,0.070396]
[1723754417547,0.00026389,56808.0,56804.0,0.153]
[1723754417548,0.07065889,56808.0,56805.0,0.006]
[1723754417948,0.07065889,56808.0,56805.0,0.076398]
[1723754418164,0.158,56817.0,56814.0,0.070386]
[1723754418457,0.228383,56817.0,56816.0,0.3608]
[1723754419953,0.229383,56817.0,56816.0,0.3608]
[1723754420354,0.229383,56817.0,56816.0,0.3618]
[1723754422155,1.188566,56817.0,56816.0,0.001]
[1723754422663,1.198566,56817.0,56816.0,0.001]
[1723754422853,1.188566,56817.0,56816.0,0.001]
[1723754423160,0.07039,56812.0,56811.0,0.00026389]
[1723754423463,0.64409,56812.0,56811.0,0.00026389]
[1723754424252,0.28329,56812.0,56811.0,0.00026389]
[1723754425058,0.28329,56812.0,56811.0,0.00426389]
[1723754425367,0.64409,56812.0,56811.0,0.01026389]
[1723754425960,0.64409,56812.0,56811.0,0.00626389]
[1723754426158,0.64409,56812.0,56811.0,0.00726389]
[1723754426467,0.64409,56812.0,56811.0,0.00126389]
[1723754426658,0.64409,56812.0,56811.0,0.00426389]
[1723754426967,0.65203534,56812.0,56811.0,0.00426389]
[1723754428664,0.65503534,56812.0,56811.0,0.00326389]
[1723754428857,0.65503534,56812.0,56811.0,0.00226389]
[1723754429168,0.66503534,56812.0,56811.0,0.00226389]
[1723754429354,0.66503534,56812.0,56811.0,0.00026389]
[1723754430764,0.65503534,56812.0,56811.0,0.00026389]
[1723754431159,0.65603534,56812.0,56811.0,0.00026389]
[1723754431861,0.65203534,56812.0,56811.0,0.00026389]
[1723754432069,0.65503534,56812.0,56811.0,0.00026389]
[1723754432766,0.65603534,56812.0,56811.0,0.00026389]
[1723754433270,0.29523534,56812.0,56811.0,0.00026389]
[1723754433572,0.65603534,56812.0,56811.0,0.00026389]
[1723754434657,0.73642534,56812.0,56811.0,0.00026389]
[1723754437069,0.070396,56807.0,56806.0,0.07013223]
[1723754437264,0.431196,56807.0,56806.0,0.07013223]
[1723754438266,0.431196,56807.0,56800.0,0.39796528]
[1723754438267,0.070399,56805.0,56800.0,0.39796528]
[1723754438571,0.2129,56804.0,56800.0,0.3103]
[1723754439872,0.2833,56804.0,56800.0,0.3153]
[1723754440272,0.070401,56803.0,56800.0,0.3153]
[1723754440464,0.070401,56803.0,56800.0,0.3183]
[1723754441272,0.431201,56803.0,56800.0,0.3153]
[1723754441471,0.431201,56803.0,56800.0,0.3183]
[1723754441859,0.070403,56801.0,56800.0,0.3173]
[1723754442067,0.070403,56801.0,56793.0,0.08766528]
[1723754442068,0.180403,56801.0,56793.0,0.08766528]
[1723754442270,0.1543,56800.0,56795.0,0.07024654]
[1723754442568,0.431209,56796.0,56792.0,0.07024654]
[1723754442868,0.431209,56796.0,56791.0,0.1475]
[1723754442869,0.070414,56792.0,56791.0,0.1475]
[1723754443263,0.43121,56796.0,56791.0,0.1475]
[1723754443475,0.43121,56796.0,56795.0,0.008]
[1723754443770,0.3608,56796.0,56795.0,0.008]
[1723754443959,0.3608,56803.0,56795.0,0.50286824]
[1723754444165,0.3608,56803.0,56801.0,0.07019646]
[1723754444371,0.3608,56803.0,56800.0,0.07019646]
[1723754444566,0.3608,56803.0,56802.0,0.07019646]
[1723754445470,0.43893992,56804.0,56799.0,0.070405]
[1723754445666,0.43893992,56804.0,56803.0,0.07018809]
[1723754445866,0.070401,56803.0,56802.0,0.07018809]
[1723754446173,0.070401,56803.0,56802.0,0.07418809]
[1723754446376,0.43989992,56804.0,56802.0,0.07418809]
[1723754446570,0.070401,56803.0,56802.0,0.07418809]
[1723754446767,0.070401,56803.0,56802.0,0.07118809]
[1723754448075,0.070401,56803.0,56797.0,0.08774558]
[1723754448273,0.070401,56803.0,56795.0,0.00803245]
[1723754448274,0.070401,56803.0,56799.0,0.3608]
[1723754449382,0.070401,56803.0,56799.0,0.45254558]
[1723754449782,0.071401,56803.0,56799.0,0.45254558]
[1723754450079,0.070402,56802.0,56799.0,0.45254558]
[1723754450381,0.070402,56802.0,56800.0,0.08774558]
[1723754451082,0.070403,56801.0,56800.0,0.08774558]
[1723754451281,0.070403,56801.0,56800.0,0.22180424]
[1723754451479,0.070403,56801.0,56799.0,0.3668]
[1723754451480,0.070403,56801.0,56799.0,0.45454558]
[1723754451679,0.070404,56800.0,56799.0,0.45054558]
[1723754451880,0.070404,56800.0,56799.0,0.50086284]
[1723754452278,0.070404,56800.0,56799.0,0.49686284]
[1723754452479,0.070404,56800.0,56799.0,0.45065076]
[1723754452987,0.070404,56800.0,56799.0,0.45465076]
[1723754453380,0.070404,56800.0,56799.0,0.50086573]
[1723754453885,0.070404,56800.0,56799.0,0.49886573]
[1723754454087,0.070404,56800.0,56799.0,0.004]
[1723754454088,0.283304,56800.0,56799.0,0.004]
[1723754454290,0.283304,56800.0,56799.0,0.07428338]
[1723754454584,0.283304,56800.0,56799.0,0.006]
[1723754455087,0.353708,56800.0,56799.0,0.006]
[1723754455791,0.211251,56790.0,56785.0,0.07029599]
[1723754455990,0.211251,56790.0,56776.0,9.9e-07]
[1723754455991,0.070428,56781.0,56776.0,9.9e-07]
[1723754456283,0.5737,56777.0,56766.0,0.1494]
[1723754456481,0.2129,56769.0,56765.0,0.00775616]
[1723754456685,0.2129,56769.0,56763.0,0.08786999]
[1723754456883,0.3608,56771.0,56764.0,0.22200901]
[1723754457083,0.00018275,56770.0,56764.0,0.08786999]
[1723754457286,0.07062475,56770.0,56762.0,0.24507337]
[1723754457486,0.2129,56767.0,56762.0,0.15720338]
[1723754458187,0.283346,56767.0,56762.0,0.15720338]
[1723754458487,0.283346,56767.0,56764.0,0.014]
[1723754458686,0.00118275,56770.0,56764.0,0.014]
[1723754458988,0.00118275,56770.0,56765.0,0.1556]
[1723754459187,0.3608,56766.0,56764.0,0.014]
[1723754459792,0.00118275,56770.0,56765.0,0.52848]
[1723754459993,0.431213,56793.0,56769.0,0.431243]
[1723754460182,0.3608,56793.0,56778.0,0.3608]
[1723754460381,0.3608,56793.0,56787.0,0.070421]
[1723754460692,0.3608,56793.0,56789.0,0.070418]
[1723754461089,0.00806388,56796.0,56779.0,0.3062]
[1723754461396,0.00026412,56797.0,56785.0,0.00026412]
[1723754461586,0.001,56793.0,56787.0,0.008]
[1723754461784,0.070415,56792.0,56787.0,0.008]
[1723754462089,0.2139,56793.0,56787.0,0.019]
[1723754462289,0.001,56793.0,56787.0,0.019]
[1723754462497,0.001,56793.0,56788.0,0.1492]
[1723754462991,0.071414,56793.0,56788.0,0.1492]
[1723754463202,0.070416,56791.0,56788.0,0.1492]
[1723754463395,0.070416,56791.0,56787.0,0.01591017]
[1723754463691,0.070417,56790.0,56785.0,0.08468612]
[1723754464488,0.07042,56788.0,56785.0,0.01426412]
[1723754464703,0.070422,56786.0,56785.0,0.01422412]
[1723754465500,0.070422,56786.0,56785.0,0.00022412]
[1723754465994,0.3608,56789.0,56785.0,0.00222412]
[1723754466297,0.3608,56789.0,56785.0,0.07264612]
[1723754466501,0.3608,56789.0,56785.0,0.07064612]
[1723754466693,0.3608,56789.0,56785.0,0.07764612]
[1723754466886,0.3608,56789.0,56785.0,0.07864612]
[1723754467091,0.3608,56789.0,56786.0,0.070421]
[1723754468093,0.431218,56789.0,56786.0,0.070421]
[1723754468493,0.431218,56789.0,56786.0,0.074421]
[1723754468792,0.431218,56789.0,56786.0,0.080421]
[1723754469199,0.07042,56788.0,56786.0,0.078421]
[1723754470106,0.43122,56788.0,56786.0,0.078421]
[1723754470303,0.43122,56788.0,56786.0,0.077421]
[1723754470495,0.070421,56787.0,56786.0,0.007]
[1723754470706,0.283321,56787.0,56786.0,0.007]
[1723754470997,0.3608,56788.0,56786.0,0.007]
[1723754471193,0.3608,56788.0,56787.0,0.070421]
[1723754471394,0.00026412,56797.0,56787.0,1.18378]
[1723754471602,0.00026412,56797.0,56794.0,0.070412]
[1723754472400,0.00026412,56797.0,56787.0,0.1055]
[1723754472401,0.00026412,56797.0,56796.0,0.070409]
[1723754473295,0.3608,56806.0,56805.0,0.070398]
[1723754473606,0.3608,56813.0,56796.0,0.3608]
[1723754473607,0.070391,56811.0,56796.0,0.3608]
[1723754473801,0.070391,56811.0,56796.0,0.60866999]
[1723754474301,0.3608,56818.0,56814.0,0.070387]
[1723754474697,0.3608,56818.0,56796.0,0.009]
[1723754474698,0.3608,56808.0,56796.0,0.009]
[1723754474995,0.7216,56797.0,56780.0,0.0001833]
[1723754475195,0.644128,56781.0,56780.0,0.0001833]
[1723754475499,0.5737,56781.0,56780.0,0.0001833]
[1723754475896,0.3608,56781.0,56780.0,0.0001833]
[1723754477305,0.3628,56781.0,56780.0,0.0001833]
[1723754477898,0.3658,56781.0,56780.0,0.0001833]
[1723754478503,0.3638,56781.0,56780.0,0.0041833]
[1723754478699,0.3608,56781.0,56780.0,0.0061833]
[1723754479093,0.3608,56781.0,56780.0,0.0021833]
[1723754479305,0.88916,56781.0,56780.0,0.0021833]
[1723754479603,0.3608,56781.0,56780.0,0.0021833]
[1723754480194,0.88916,56781.0,56780.0,0.0001833]
[1723754480393,0.89016,56781.0,56780.0,0.0001833]
[1723754480598,0.3618,56781.0,56780.0,0.0001833]
[1723754481215,0.3698,56781.0,56780.0,0.0011833]
[1723754481900,0.3768,56781.0,56780.0,0.0021833]
[1723754482311,0.3738,56781.0,56780.0,0.0011833]
[1723754483305,0.3738,56781.0,56780.0,0.0001833]
[1723754483607,0.3658,56781.0,56780.0,0.0001833]
[1723754484316,0.3628,56781.0,56780.0,0.0001833]
[1723754484701,0.002,56781.0,56780.0,0.0001833]
[1723754484898,0.3608,56785.0,56781.0,0.070428]
[1723754485096,0.3608,56785.0,56782.0,0.109]
[1723754485903,0.3608,56785.0,56782.0,0.179426]
[1723754487213,0.3608,56785.0,56782.0,0.118]
[1723754487415,0.3608,56785.0,56783.0,0.52832]
[1723754487722,0.36176,56793.0,56792.0,0.070414]
[1723754488013,0.3608,56793.0,56792.0,0.070414]
[1723754488512,0.00026412,56794.0,56793.0,0.070413]
[1723754488706,0.00026412,56794.0,56793.0,0.220413]
[1723754488907,0.00026412,56794.0,56793.0,0.748653]
[1723754489507,0.070405,56800.0,56798.0,0.070407]
[1723754489706,0.00806336,56800.0,56789.0,0.3608]
[1723754490018,0.070412,56794.0,56793.0,0.05257611]
[1723754490508,0.178312,56794.0,56793.0,0.05257611]
[1723754490904,0.178312,56794.0,56792.0,0.018]
[1723754491315,0.178312,56794.0,56793.0,0.001]
[1723754491919,0.178312,56794.0,56789.0,0.3638]
[1723754492117,0.178312,56794.0,56790.0,0.070417]
[1723754493020,0.36904316,56796.0,56789.0,0.003]
[1723754493209,0.3608,56796.0,56795.0,0.070411]
[1723754493412,0.3608,56796.0,56795.0,0.12298745]
[1723754493620,0.3608,56796.0,56795.0,0.070411]
[1723754493816,0.3608,56796.0,56792.0,0.05257645]
[1723754494211,0.3618,56796.0,56792.0,0.05257645]
[1723754494609,0.3618,56796.0,56795.0,0.003]
[1723754495011,0.3608,56796.0,56795.0,0.003]
[1723754495316,0.43121,56796.0,56792.0,0.006]
[1723754495920,0.3608,56796.0,56795.0,0.070411]
[1723754496113,0.3608,56796.0,56795.0,0.220411]
[1723754496307,0.07067012,56799.0,56795.0,0.220411]
[1723754496508,0.07067012,56799.0,56797.0,0.05256232]
[1723754496710,0.070408,56797.0,56796.0,0.05256232]
[1723754496915,0.303,56797.0,56794.0,0.05256232]
[1723754497121,0.070412,56794.0,56793.0,0.05256232]
[1723754497612,0.070412,56794.0,56790.0,0.070417]
[1723754497812,0.3608,56792.0,56790.0,0.220417]
[1723754498317,0.3608,56792.0,56791.0,0.070416]
[1723754498713,0.213,56797.0,56795.0,0.070411]
[1723754498918,0.213,56797.0,56788.0,0.1051]
[1723754498919,0.283409,56797.0,56794.0,0.05256239]
[1723754499120,0.283409,56797.0,56795.0,0.05256239]
[1723754499316,0.283409,56797.0,56794.0,0.05256239]
[1723754499622,0.283409,56797.0,56794.0,0.20256239]
[1723754500122,0.283409,56797.0,56795.0,0.05256239]
[1723754500733,0.288409,56797.0,56795.0,0.05256239]
[1723754500922,0.288409,56797.0,56777.0,0.35194785]
[1723754500923,0.218,56797.0,56777.0,0.35194785]
[1723754501125,0.218,56797.0,56788.0,0.2751]
[1723754501321,0.215,56797.0,56796.0,0.070409]
[1723754501627,0.006,56797.0,56796.0,0.230409]
[1723754501920,0.007,56797.0,56796.0,1.158609]
[1723754502818,0.39449,56812.0,56810.0,0.070392]
[1723754503022,0.1111,56812.0,56811.0,0.174891]
[1723754503418,0.0518777,56824.0,56811.0,0.174891]
[1723754503419,0.12218003,56839.0,56814.0,0.0264]
[1723754503722,0.00808572,56832.0,56830.0,0.05249941]
[1723754503915,0.070366,56831.0,56830.0,0.05249941]
[1723754504220,0.070377,56822.0,56821.0,0.00026412]
[1723754504519,0.283377,56822.0,56821.0,0.00026412]
[1723754506320,0.29159609,56822.0,56821.0,0.00026412]
[1723754506522,0.29159609,56822.0,56821.0,0.00226412]
[1723754506822,1.21955609,56822.0,56821.0,0.00226412]
[1723754507028,1.21955609,56822.0,56821.0,0.00026412]
[1723754507726,1.22355609,56822.0,56821.0,0.00026412]
[1723754509127,0.29659609,56822.0,56821.0,0.00026412]
[1723754509713,0.005,56822.0,56821.0,0.00026412]
[1723754509922,1.14096,56822.0,56821.0,0.00026412]
[1723754510126,0.070389,56813.0,56807.0,0.12290237]
[1723754510427,0.070389,56813.0,56806.0,0.3608]
[1723754510428,0.1122,56812.0,56809.0,0.070393]
[1723754510626,0.1122,56812.0,56806.0,0.41330637]
[1723754510816,0.3608,56819.0,56809.0,0.05250637]
[1723754511013,0.3608,56819.0,56818.0,0.070382]
[1723754511722,0.00026412,56820.0,56818.0,0.070382]
[1723754512031,0.00026412,56820.0,56819.0,0.070381]
[1723754512928,0.070381,56819.0,56816.0,0.070384]
[1723754514215,0.00026412,56820.0,56817.0,0.070383]
[1723754515322,0.00026412,56820.0,56819.0,0.431181]
[1723754516526,0.00026412,56820.0,56819.0,0.070381]
[1723754517023,0.00026412,56820.0,56819.0,0.072381]
[1723754518024,0.1014,56827.0,56819.0,0.072381]
[1723754518025,0.1014,56827.0,56826.0,0.070372]
[1723754519329,0.177771,56827.0,56826.0,0.001]
[1723754519631,0.393771,56827.0,56826.0,0.001]
[1723754521325,0.48033204,56827.0,56826.0,0.001]
[1723754521729,0.56018016,56827.0,56826.0,0.001]
[1723754521924,0.56018016,56827.0,56821.0,0.00026412]
[1723754521925,0.50228612,56827.0,56814.0,0.070387]
[1723754522124,0.06913447,56817.0,56810.0,0.070392]
[1723754522429,0.213,56820.0,56810.0,0.07851583]
[1723754522627,0.070398,56805.0,56804.0,0.00092]
[1723754522828,0.5738,56805.0,56799.0,0.3608]
[1723754523132,0.06912357,56801.0,56799.0,0.431205]
[1723754523325,0.06912357,56803.0,56800.0,0.070404]